fUST/lending_fUST_20240830
["ID","MTS","AMOUNT","RATE_DAILY","PERIOD"]
[336555079,1724952656289,-3752.69,0.00020821,2]
[336555081,1724952656300,-428.59511135,0.00020821,2]
[336555083,1724952656310,-1226.84,0.00020821,2]
[336555085,1724952656320,-500.0,0.00020821,2]
[336555087,1724952656331,-1379.94,0.00020821,2]
[336555089,1724952656340,-500.0,0.00020821,2]
[336555091,1724952656351,-500.0,0.00020821,2]
[336555094,1724952656365,-500.0,0.00020821,2]
[336555096,1724952656375,-151.0,0.00020821,2]
[336555098,1724952656387,-500.0,0.00020821,2]
[336555100,1724952656399,-357.56,0.00020821,2]
[336555102,1724952656411,-1041.47,0.00020821,2]
[336555104,1724952656421,-500.0,0.00020821,2]
[336555106,1724952656432,-941.03,0.00020821,2]
[336555108,1724952656442,-1814.12,0.00020821,2]
[336555110,1724952656452,-151.0,0.00020821,2]
[336555112,1724952656464,-1236.89,0.00020821,2]
[336555114,1724952656474,-500.0,0.00020821,2]
[336555117,1724952656484,-500.0,0.00020821,2]
[336555119,1724952656495,-500.0,0.00020821,2]
[336555121,1724952656506,-500.0,0.00020821,2]
[336555123,1724952656519,-500.0,0.00020821,2]
[336555125,1724952656529,-500.0,0.00020821,2]
[336555127,1724952656540,-974.98,0.00020821,2]
[336555129,1724952656550,-500.0,0.00020821,2]
[336555131,1724952656560,-500.0,0.00020821,2]
[336555133,1724952656570,-596.52,0.00020821,2]
[336555135,1724952656580,-500.0,0.00020821,2]
[336555137,1724952656591,-500.0,0.00020821,2]
[336555139,1724952656601,-500.0,0.00020821,2]
[336555141,1724952656613,-328.067773,0.00020821,2]
[336555144,1724952656625,-199.25,0.00020821,2]
[336555146,1724952656635,-524.17,0.00020821,2]
[336555148,1724952656647,-500.0,0.00020821,2]
[336555150,1724952656657,-328.067773,0.00020821,2]
[336555152,1724952656668,-507.19,0.00020821,2]
[336555154,1724952656679,-500.0,0.00020821,2]
[336555156,1724952656691,-500.0,0.00020821,2]
[336555158,1724952656701,-500.0,0.00020821,2]
[336555160,1724952656712,-1015.18,0.00020821,2]
[336555162,1724952656721,-500.0,0.00020821,2]
[336555164,1724952656731,-2068.23,0.00020821,2]
[336555167,1724952656742,-17466.73,0.00020821,2]
[336555169,1724952656752,-500.0,0.00020821,2]
[336555171,1724952656763,-598.75,0.00020821,2]
[336555173,1724952656772,-230.82,0.00020821,2]
[336555175,1724952656781,-500.0,0.00020821,2]
[336555177,1724952656791,-500.0,0.00020821,2]
[336555179,1724952656802,-243.45,0.00020821,2]
[336555181,1724952656815,-990.14,0.00020821,2]
[336555183,1724952656829,-500.0,0.00020821,2]
[336555185,1724952656839,-500.0,0.00020821,2]
[336555187,1724952656849,-183.51628003,0.00020821,2]
[336555189,1724952656863,-500.0,0.00020821,2]
[336555191,1724952656873,-500.0,0.00020821,2]
[336555193,1724952656883,-500.0,0.00020821,2]
[336555195,1724952656892,-500.0,0.00020821,2]
[336555197,1724952656904,-2201.12,0.00020821,2]
[336555200,1724952656915,-420.0,0.00020899,2]
[336555202,1724952656925,-150.0,0.00021,2]
[336555204,1724952656936,-453.50239903,0.00021,4]
[336555206,1724952656947,-453.45715737,0.00021,4]
[336555208,1724952656957,-691.49,0.00021095,2]
[336555210,1724952656967,-1084.28,0.00021095,2]
[336555212,1724952656977,-500.0,0.00021095,2]
[336555214,1724952656988,-524.2,0.00021095,2]
[336555216,1724952656998,-193.33,0.00021095,2]
[336555218,1724952657008,-500.0,0.00021095,2]
[336555220,1724952657017,-291.17,0.00021095,2]
[336555222,1724952657027,-556.36,0.00021095,2]
[336555224,1724952657036,-500.0,0.00021095,2]
[336555226,1724952657047,-500.0,0.00021095,2]
[336555228,1724952657056,-500.0,0.00021095,2]
[336555230,1724952657066,-248.27,0.00021095,2]
[336555232,1724952657076,-6827.52,0.00021095,2]
[336555234,1724952657086,-500.0,0.00021095,2]
[336555236,1724952657096,-1197.44,0.00021095,2]
[336555238,1724952657107,-1850.92,0.00021095,2]
[336555240,1724952657117,-2427.73,0.00021095,2]
[336555242,1724952657127,-1397.11,0.00021095,2]
[336555244,1724952657137,-500.0,0.00021095,2]
[336555246,1724952657147,-500.0,0.00021095,2]
[336555248,1724952657157,-1150.01,0.00021095,2]
[336555250,1724952657167,-500.0,0.00021095,2]
[336555252,1724952657176,-926.01,0.00021095,2]
[336555254,1724952657186,-500.0,0.00021095,2]
[336555256,1724952657195,-3752.69,0.00021095,2]
[336555258,1724952657205,-1226.84,0.00021095,2]
[336555260,1724952657217,-1379.94,0.00021095,2]
[336555262,1724952657227,-295.12324981,0.00021095,2]
[336555265,1724952657238,-1041.47,0.00021095,2]
[336555267,1724952657249,-395.88031229,0.00021095,2]
[336555269,1724952657258,-941.03,0.00021095,2]
[336555271,1724952657268,-1814.12,0.00021095,2]
[336555273,1724952657278,-1236.89,0.00021095,2]
[336555275,1724952657288,-500.0,0.00021095,2]
[336555277,1724952657298,-391.70675791,0.00021095,2]
[336555279,1724952657307,-500.0,0.00021095,2]
[336555281,1724952657319,-500.0,0.00021095,2]
[336555283,1724952657329,-974.98,0.00021095,2]
[336555285,1724952657338,-151.0,0.00021095,2]
[336555287,1724952657349,-500.0,0.00021095,2]
[336555289,1724952657361,-500.0,0.00021095,2]
[336555291,1724952657370,-500.0,0.00021095,2]
[336555293,1724952657380,-500.0,0.00021095,2]
[336555295,1724952657390,-151.0,0.00021095,2]
[336555297,1724952657400,-524.17,0.00021095,2]
[336555299,1724952657411,-507.19,0.00021095,2]
[336555301,1724952657422,-184.95,0.00021095,2]
[336555303,1724952657434,-500.0,0.00021095,2]
[336555306,1724952657445,-500.0,0.00021095,2]
[336555308,1724952657454,-1015.18,0.00021095,2]
[336555310,1724952657464,-500.0,0.00021095,2]
[336555312,1724952657476,-2068.23,0.00021095,2]
[336555314,1724952657486,-17466.73,0.00021095,2]
[336555316,1724952657496,-500.0,0.00021095,2]
[336555318,1724952657507,-598.75,0.00021095,2]
[336555320,1724952657517,-500.0,0.00021095,2]
[336555322,1724952657526,-500.0,0.00021095,2]
[336555324,1724952657535,-990.14,0.00021095,2]
[336555326,1724952657545,-200.6,0.00021095,2]
[336555328,1724952657556,-500.0,0.00021095,2]
[336555330,1724952657567,-500.0,0.00021095,2]
[336555332,1724952657578,-500.0,0.00021095,2]
[336555335,1724952657589,-500.0,0.00021095,2]
[336555337,1724952657600,-500.0,0.00021095,2]
[336555339,1724952657611,-2201.12,0.00021095,2]
[336555341,1724952657622,-246.011452,0.00021095,2]
[336555343,1724952657633,-453.50239903,0.000212,4]
[336555345,1724952657645,-453.45715737,0.000212,4]
[336555347,1724952657655,-1500.0,0.00021219,2]
[336555349,1724952657666,-465.19589777,0.000213,2]
[336555352,1724952657677,-691.95386981,0.00021368,2]
[336555354,1724952657687,-259.82544508,0.00021368,2]
[336555356,1724952657699,-691.49,0.00021369,2]
[336555358,1724952657710,-1084.28,0.00021369,2]
[336555360,1724952657720,-500.0,0.00021369,2]
[336555362,1724952657730,-524.2,0.00021369,2]
[336555364,1724952657742,-596.23,0.00021369,2]
[336555366,1724952657752,-500.0,0.00021369,2]
[336555368,1724952657762,-151.0,0.00021369,2]
[336555370,1724952657772,-236.18,0.00021369,2]
[336555373,1724952657782,-6827.52,0.00021369,2]
[336555375,1724952657792,-500.0,0.00021369,2]
[336555377,1724952657804,-1197.44,0.00021369,2]
[336555379,1724952657816,-2427.73,0.00021369,2]
[336555381,1724952657827,-1397.11,0.00021369,2]
[336555383,1724952657838,-548.63,0.00021369,2]
[336555394,1724952657938,-1850.92,0.00021369,2]
[336555396,1724952657950,-500.0,0.00021369,2]
[336555398,1724952657962,-1150.01,0.00021369,2]
[336555400,1724952657973,-500.0,0.00021369,2]
[336555402,1724952657982,-926.01,0.00021369,2]
[336555404,1724952657991,-3752.69,0.00021369,2]
[336555406,1724952658002,-1226.84,0.00021369,2]
[336555408,1724952658012,-1379.94,0.00021369,2]
[336555410,1724952658024,-151.0,0.00021369,2]
[336555412,1724952658033,-1041.47,0.00021369,2]
[336555414,1724952658043,-941.03,0.00021369,2]
[336555416,1724952658053,-1814.12,0.00021369,2]
[336555418,1724952658063,-1236.89,0.00021369,2]
[336555420,1724952658074,-500.0,0.00021369,2]
[336555422,1724952658084,-500.0,0.00021369,2]
[336555424,1724952658094,-294.52,0.00021369,2]
[336555426,1724952658104,-974.98,0.00021369,2]
[336555428,1724952658115,-500.0,0.00021369,2]
[336555430,1724952658126,-500.0,0.00021369,2]
[336555432,1724952658136,-500.0,0.00021369,2]
[336555434,1724952658147,-382.55,0.00021369,2]
[336555436,1724952658157,-328.067773,0.00021369,2]
[336555438,1724952658166,-524.17,0.00021369,2]
[336555440,1724952658176,-328.067773,0.00021369,2]
[336555442,1724952658186,-507.19,0.00021369,2]
[336555444,1724952658196,-500.0,0.00021369,2]
[336555446,1724952658205,-1015.18,0.00021369,2]
[336555448,1724952658215,-500.0,0.00021369,2]
[336555450,1724952658225,-2068.23,0.00021369,2]
[336555452,1724952658235,-17466.73,0.00021369,2]
[336555454,1724952658244,-500.0,0.00021369,2]
[336555456,1724952658254,-598.75,0.00021369,2]
[336555458,1724952658265,-347.22932024,0.00021369,2]
[336555460,1724952658274,-500.0,0.00021369,2]
[336555462,1724952658284,-990.14,0.00021369,2]
[336555464,1724952658294,-500.0,0.00021369,2]
[336555466,1724952658303,-500.0,0.00021369,2]
[336555468,1724952658313,-500.0,0.00021369,2]
[336555470,1724952658323,-500.0,0.00021369,2]
[336555472,1724952658332,-500.0,0.00021369,2]
[336555473,1724952658342,-2201.12,0.00021369,2]
[336555475,1724952658352,-150.112233,0.000214,2]
[336555477,1724952658361,-453.50239903,0.000214,4]
[336555479,1724952658371,-453.45715737,0.000214,4]
[336555481,1724952658380,-453.50239903,0.000216,4]
[336555483,1724952658390,-453.45715737,0.000216,4]
[336555485,1724952658400,-277.45589,0.00021632,2]
[336555487,1724952658410,-277.45589,0.00021632,2]
[336555489,1724952658419,-691.49,0.00021643,2]
[336555491,1724952658429,-1084.28,0.00021643,2]
[336555493,1724952658439,-500.0,0.00021643,2]
[336555495,1724952658448,-524.2,0.00021643,2]
[336555497,1724952658458,-257.138475,0.00021643,2]
[336555499,1724952658468,-257.138475,0.00021643,2]
[336555501,1724952658477,-500.0,0.00021643,2]
[336555503,1724952658487,-6827.52,0.00021643,2]
[336555505,1724952658497,-500.0,0.00021643,2]
[336555507,1724952658507,-1197.44,0.00021643,2]
[336555509,1724952658516,-2427.73,0.00021643,2]
[336555511,1724952658525,-1397.11,0.00021643,2]
[336555513,1724952658535,-1850.92,0.00021643,2]
[336555514,1724952658544,-510.75157867,0.00021643,2]
[336555516,1724952658554,-1150.01,0.00021643,2]
[336555518,1724952658563,-628.42324222,0.00021643,2]
[336555520,1724952658573,-926.01,0.00021643,2]
[336555522,1724952658583,-3752.69,0.00021643,2]
[336555524,1724952658592,-1226.84,0.00021643,2]
[336555526,1724952658602,-1379.94,0.00021643,2]
[336555528,1724952658611,-1041.47,0.00021643,2]
[336555530,1724952658621,-941.03,0.00021643,2]
[336555532,1724952658631,-1814.12,0.00021643,2]
[336555534,1724952658640,-1236.89,0.00021643,2]
[336555536,1724952658650,-500.0,0.00021643,2]
[336555538,1724952658659,-213.51309623,0.00021643,2]
[336555540,1724952658669,-974.98,0.00021643,2]
[336555542,1724952658680,-151.0,0.00021643,2]
[336555544,1724952658689,-500.0,0.00021643,2]
[336555546,1724952658698,-500.0,0.00021643,2]
[336555548,1724952658708,-500.0,0.00021643,2]
[336555550,1724952658718,-151.0,0.00021643,2]
[336555552,1724952658727,-524.17,0.00021643,2]
[336555554,1724952658736,-507.19,0.00021643,2]
[336555556,1724952658745,-500.0,0.00021643,2]
[336555558,1724952658756,-1015.18,0.00021643,2]
[336555560,1724952658765,-462.58647167,0.00021643,2]
[336555562,1724952658778,-2068.23,0.00021643,2]
[336555564,1724952658789,-17466.73,0.00021643,2]
[336555566,1724952658800,-598.75,0.00021643,2]
[336555568,1724952658809,-500.0,0.00021643,2]
[336555570,1724952658820,-277.51,0.00021643,2]
[336555572,1724952658833,-990.14,0.00021643,2]
[336555574,1724952658845,-500.0,0.00021643,2]
[336555576,1724952658857,-500.0,0.00021643,2]
[336555578,1724952658868,-500.0,0.00021643,2]
[336555580,1724952658879,-500.0,0.00021643,2]
[336555582,1724952658889,-500.0,0.00021643,2]
[336555584,1724952658902,-2201.12,0.00021643,2]
[336555586,1724952658911,-246.011452,0.00021643,2]
[336555589,1724952658922,-484.02307561,0.00021666,2]
[336555591,1724952658932,-153.0,0.00021671,2]
[336555593,1724952658943,-153.0,0.00021671,2]
[336555595,1724952658955,-153.0,0.00021671,2]
[336555597,1724952658965,-150.112233,0.000217,5]
[336555599,1724952658976,-153.0,0.00021781,2]
[336555601,1724952658986,-153.0,0.00021781,2]
[336555603,1724952658996,-2000.0,0.000218,10]
[336555605,1724952659007,-3068.97,0.000218,2]
[336555607,1724952659018,-453.50239903,0.000218,4]
[336555609,1724952659028,-453.45715737,0.000218,4]
[336555611,1724952659038,-500.0,0.00021899,2]
[336555613,1724952659048,-691.49,0.00021917,2]
[336555615,1724952659057,-1084.28,0.00021917,2]
[336555617,1724952659067,-502.10340332,0.00021917,2]
[336555619,1724952659077,-500.0,0.00021917,2]
[336555621,1724952659088,-524.2,0.00021917,2]
[336555623,1724952659098,-500.0,0.00021917,2]
[336555625,1724952659110,-1000.0,0.00021917,30]
[336555627,1724952659120,-1000.0,0.00021917,30]
[336555629,1724952659130,-6827.52,0.00021917,2]
[336555631,1724952659140,-500.0,0.00021917,2]
[336555633,1724952659152,-1197.44,0.00021917,2]
[336555635,1724952659162,-2427.73,0.00021917,2]
[336555637,1724952659172,-1397.11,0.00021917,2]
[336555639,1724952659182,-1850.92,0.00021917,2]
[336555641,1724952659192,-1150.01,0.00021917,2]
[336555643,1724952659202,-926.01,0.00021917,2]
[336555645,1724952659213,-3752.69,0.00021917,2]
[336555647,1724952659223,-1226.84,0.00021917,2]
[336555649,1724952659233,-1379.94,0.00021917,2]
[336555651,1724952659243,-151.0,0.00021917,2]
[336555653,1724952659253,-1041.47,0.00021917,2]
[336555655,1724952659263,-941.03,0.00021917,2]
[336555657,1724952659273,-1814.12,0.00021917,2]
[336555659,1724952659282,-1236.89,0.00021917,2]
[336555661,1724952659291,-390.28,0.00021917,2]
[336555663,1724952659301,-974.98,0.00021917,2]
[336555665,1724952659311,-500.0,0.00021917,2]
[336555667,1724952659320,-500.0,0.00021917,2]
[336555668,1724952659331,-500.0,0.00021917,2]
[336555670,1724952659341,-328.067773,0.00021917,2]
[336555672,1724952659350,-524.17,0.00021917,2]
[336555674,1724952659363,-328.067773,0.00021917,2]
[336555676,1724952659373,-507.19,0.00021917,2]
[336555678,1724952659383,-500.0,0.00021917,2]
[336555680,1724952659393,-1015.18,0.00021917,2]
[336555682,1724952659403,-2068.23,0.00021917,2]
[336555684,1724952659414,-17466.73,0.00021917,2]
[336555686,1724952659424,-598.75,0.00021917,2]
[336555688,1724952659434,-500.0,0.00021917,2]
[336555690,1724952659444,-990.14,0.00021917,2]
[336555692,1724952659454,-500.0,0.00021917,2]
[336555694,1724952659464,-500.0,0.00021917,2]
[336555696,1724952659474,-500.0,0.00021917,2]
[336555698,1724952659484,-500.0,0.00021917,2]
[336555700,1724952659494,-2201.12,0.00021917,2]
[336555702,1724952659504,-151.0,0.00021918,2]
[336555704,1724952659514,-151.0,0.00021918,2]
[336555706,1724952659524,-151.0,0.00021918,2]
[336555708,1724952659534,-151.0,0.00021918,2]
[336555710,1724952659543,-50215.17,0.00022,14]
[336555712,1724952659554,-300.0,0.00022,30]
[336555714,1724952659564,-150.112233,0.00022,5]
[336555716,1724952659574,-4285.18,0.00022,14]
[336555718,1724952659583,-257.138475,0.00022,7]
[336555720,1724952659594,-257.138475,0.00022,7]
[336555722,1724952659605,-151.0,0.00022,7]
[336555724,1724952659616,-151.0,0.00022,7]
[336555726,1724952659625,-277.45589,0.00022,7]
[336555728,1724952659634,-277.45589,0.00022,7]
[336555730,1724952659644,-246.011452,0.00022,7]
[336555732,1724952659653,-155.0,0.0002212,7]
[336555734,1724952659663,-500.0,0.00022172,2]
[336555736,1724952659672,-691.49,0.00022191,5]
[336555738,1724952659683,-1084.28,0.00022191,5]
[336555740,1724952659692,-500.0,0.00022191,5]
[336555742,1724952659702,-524.2,0.00022191,5]
[336555744,1724952659711,-500.0,0.00022191,5]
[336555746,1724952659723,-6827.52,0.00022191,5]
[336555748,1724952659732,-500.0,0.00022191,5]
[336555757,1724952659822,-1197.44,0.00022191,5]
[336555760,1724952659835,-2427.73,0.00022191,5]
[336555762,1724952659845,-1397.11,0.00022191,5]
[336555764,1724952659855,-1850.92,0.00022191,5]
[336555765,1724952659865,-1150.01,0.00022191,5]
[336555767,1724952659875,-926.01,0.00022191,5]
[336555769,1724952659885,-3752.69,0.00022191,5]
[336555771,1724952659894,-1226.84,0.00022191,5]
[336555773,1724952659906,-1379.94,0.00022191,5]
[336555775,1724952659917,-151.0,0.00022191,7]
[336555777,1724952659926,-1041.47,0.00022191,5]
[336555779,1724952659936,-941.03,0.00022191,5]
[336555781,1724952659946,-1814.12,0.00022191,5]
[336555783,1724952659956,-1236.89,0.00022191,5]
[336555785,1724952659967,-974.98,0.00022191,5]
[336555787,1724952659984,-151.0,0.00022191,7]
[336555789,1724952659998,-500.0,0.00022191,5]
[336555791,1724952660012,-500.0,0.00022191,5]
[336555793,1724952660022,-531.47396929,0.00022191,5]
[336555795,1724952660033,-151.0,0.00022191,7]
[336555797,1724952660042,-328.067773,0.00022191,7]
[336555799,1724952660053,-524.17,0.00022191,5]
[336555800,1724952660063,-328.067773,0.00022191,7]
[336555801,1724952660073,-507.19,0.00022191,5]
[336555802,1724952660083,-500.0,0.00022191,5]
[336555803,1724952660093,-1015.18,0.00022191,5]
[336555804,1724952660103,-2068.23,0.00022191,5]
[336555805,1724952660112,-17466.73,0.00022191,5]
[336555806,1724952660122,-598.75,0.00022191,5]
[336555807,1724952660133,-500.0,0.00022191,5]
[336555808,1724952660143,-990.14,0.00022191,5]
[336555809,1724952660153,-265.6311223,0.00022191,5]
[336555810,1724952660163,-500.0,0.00022191,5]
[336555811,1724952660171,-500.0,0.00022191,5]
[336555812,1724952660181,-500.0,0.00022191,5]
[336555813,1724952660191,-2201.12,0.00022191,5]
[336555814,1724952660201,-2487.89,0.000222,7]
[336555815,1724952660210,-153.0,0.00022219,2]
[336555816,1724952660220,-600.0,0.0002231,3]
[336555817,1724952660229,-600.0,0.0002231,3]
[336555818,1724952660239,-2000.0,0.00022324,2]
[336555819,1724952660250,-465.00979489,0.00022365,2]
[336555820,1724952660260,-150.112233,0.000224,3]
[336555821,1724952660269,-500.0,0.00022446,2]
[336555822,1724952660280,-691.49,0.00022465,5]
[336555823,1724952660289,-1084.28,0.00022465,5]
[336555825,1724952660299,-500.0,0.00022465,5]
[336555827,1724952660309,-524.2,0.00022465,5]
[336555829,1724952660319,-500.0,0.00022465,5]
[336555832,1724952660329,-6827.52,0.00022465,5]
[336555834,1724952660339,-500.0,0.00022465,5]
[336555835,1724952660348,-1197.44,0.00022465,5]
[336555837,1724952660359,-2427.73,0.00022465,5]
[336555840,1724952660369,-1397.11,0.00022465,5]
[336555842,1724952660379,-1850.92,0.00022465,5]
[336555844,1724952660388,-926.01,0.00022465,5]
[336555846,1724952660399,-1150.01,0.00022465,5]
[336555848,1724952660409,-3752.69,0.00022465,5]
[336555850,1724952660419,-1226.84,0.00022465,5]
[336555852,1724952660430,-1379.94,0.00022465,5]
[336555854,1724952660440,-1041.47,0.00022465,5]
[336555856,1724952660450,-941.03,0.00022465,5]
[336555858,1724952660461,-1814.12,0.00022465,5]
[336555860,1724952660470,-1236.89,0.00022465,5]
[336555862,1724952660480,-974.98,0.00022465,5]
[336555864,1724952660490,-500.0,0.00022465,5]
[336555866,1724952660500,-500.0,0.00022465,5]
[336555868,1724952660509,-524.17,0.00022465,5]
[336555870,1724952660519,-507.19,0.00022465,5]
[336555872,1724952660529,-500.0,0.00022465,5]
[336555874,1724952660540,-1015.18,0.00022465,5]
[336555876,1724952660549,-2068.23,0.00022465,5]
[336555878,1724952660559,-17466.73,0.00022465,5]
[336555880,1724952660570,-598.75,0.00022465,5]
[336555882,1724952660579,-500.0,0.00022465,5]
[336555884,1724952660589,-990.14,0.00022465,5]
[336555886,1724952660599,-500.0,0.00022465,5]
[336555888,1724952660610,-500.0,0.00022465,5]
[336555890,1724952660619,-500.0,0.00022465,5]
[336555892,1724952660629,-827.3895903,0.0002272,2]
[336555894,1724952660639,-500.0,0.0002272,2]
[336555896,1724952660648,-691.49,0.00022739,5]
[336555898,1724952660658,-1084.28,0.00022739,5]
[336555900,1724952660668,-500.0,0.00022739,5]
[336555903,1724952660688,-524.2,0.00022739,5]
[336555906,1724952660708,-257.138475,0.00022739,7]
[336555908,1724952660720,-257.138475,0.00022739,7]
[336555911,1724952660736,-151.0,0.00022739,7]
[336555914,1724952660753,-500.0,0.00022739,5]
[336555917,1724952660769,-151.0,0.00022739,7]
[336555919,1724952660788,-6827.52,0.00022739,5]
[336555922,1724952660803,-500.0,0.00022739,5]
[336555924,1724952660818,-1197.44,0.00022739,5]
[336555927,1724952660837,-2427.73,0.00022739,5]
[336555930,1724952660851,-1397.11,0.00022739,5]
[336555932,1724952660867,-1850.92,0.00022739,5]
[336555934,1724952660882,-926.01,0.00022739,5]
[336555937,1724952660898,-1150.01,0.00022739,5]
[336555939,1724952660913,-277.45589,0.00022739,7]
[336555942,1724952660930,-277.45589,0.00022739,7]
[336555945,1724952660948,-3752.69,0.00022739,5]
[336555947,1724952660963,-1226.84,0.00022739,5]
[336555950,1724952660975,-1379.94,0.00022739,5]
[336555952,1724952660988,-1041.47,0.00022739,5]
[336555955,1724952661004,-941.03,0.00022739,5]
[336555957,1724952661017,-1814.12,0.00022739,5]
[336555959,1724952661032,-1236.89,0.00022739,5]
[336555962,1724952661047,-974.98,0.00022739,5]
[336555964,1724952661061,-263.73688,0.00022739,7]
[336555967,1724952661073,-500.0,0.00022739,5]
[336555969,1724952661087,-500.0,0.00022739,5]
[336555972,1724952661101,-223.777064,0.00022739,7]
[336555974,1724952661116,-524.17,0.00022739,5]
[336555976,1724952661129,-507.19,0.00022739,5]
[336555978,1724952661142,-500.0,0.00022739,5]
[336555981,1724952661154,-1015.18,0.00022739,5]
[336555983,1724952661167,-2068.23,0.00022739,5]
[336555985,1724952661180,-17466.73,0.00022739,5]
[336555988,1724952661193,-598.75,0.00022739,5]
[336555990,1724952661208,-500.0,0.00022739,5]
[336555992,1724952661221,-990.14,0.00022739,5]
[336555994,1724952661234,-500.0,0.00022739,5]
[336555997,1724952661247,-500.0,0.00022739,5]
[336555999,1724952661259,-500.0,0.00022739,5]
[336556001,1724952661272,-2000.0,0.000228,20]
[336556004,1724952661286,-587.0,0.00022989,2]
[336556006,1724952661299,-500.0,0.00022994,2]
[336556008,1724952661312,-500.0,0.00023,30]
[336556010,1724952661325,-1000.0,0.00023,23]
[336556013,1724952661338,-691.49,0.00023013,5]
[336556015,1724952661352,-1084.28,0.00023013,5]
[336556017,1724952661368,-355.43237376,0.00023013,5]
[336556020,1724952661381,-524.2,0.00023013,5]
[336556022,1724952661395,-500.0,0.00023013,5]
[336556025,1724952661409,-6827.52,0.00023013,5]
[336556027,1724952661423,-500.0,0.00023013,5]
[336556029,1724952661433,-1197.44,0.00023013,5]
[336556031,1724952661443,-2427.73,0.00023013,5]
[336556033,1724952661454,-1397.11,0.00023013,5]
[336556035,1724952661464,-1850.92,0.00023013,5]
[336556037,1724952661476,-926.01,0.00023013,5]
[336556039,1724952661485,-1150.01,0.00023013,5]
[336556041,1724952661495,-3752.69,0.00023013,5]
[336556043,1724952661505,-1226.84,0.00023013,5]
[336556045,1724952661517,-1379.94,0.00023013,5]
[336556047,1724952661527,-151.0,0.00023013,7]
[336556049,1724952661538,-1041.47,0.00023013,5]
[336556051,1724952661548,-941.03,0.00023013,5]
[336556054,1724952661559,-1814.12,0.00023013,5]
[336556056,1724952661570,-1236.89,0.00023013,5]
[336556058,1724952661580,-974.98,0.00023013,5]
[336556060,1724952661590,-500.0,0.00023013,5]
[336556062,1724952661600,-500.0,0.00023013,5]
[336556064,1724952661613,-328.067773,0.00023013,7]
[336556066,1724952661623,-524.17,0.00023013,5]
[336556068,1724952661632,-328.067773,0.00023013,7]
[336556070,1724952661642,-507.19,0.00023013,5]
[336556072,1724952661651,-500.0,0.00023013,5]
[336556074,1724952661661,-1015.18,0.00023013,5]
[336556076,1724952661672,-2068.23,0.00023013,5]
[336556078,1724952661682,-17466.73,0.00023013,5]
[336556080,1724952661692,-598.75,0.00023013,5]
[336556082,1724952661701,-500.0,0.00023013,5]
[336556084,1724952661711,-990.14,0.00023013,5]
[336556086,1724952661721,-500.0,0.00023013,5]
[336556106,1724952661913,-291.56431643,0.00023013,5]
[336556109,1724952661931,-500.0,0.00023013,5]
[336556111,1724952661943,-207.8243323,0.00023068,2]
[336556113,1724952661953,-500.0,0.00023268,2]
[336556115,1724952661963,-691.49,0.00023287,5]
[336556117,1724952661973,-1084.28,0.00023287,5]
[336556119,1724952661984,-524.2,0.00023287,5]
[336556121,1724952661994,-500.0,0.00023287,5]